{"text_format":"3","workbook":"xlsx","n_sheets":3,"sheets":["Rozpoczęcie","Budżet prezentowy i Rejestr","Dane"],"not_rendered":{"charts":1,"defined_names":1},"read":"whole","date_system":"1900"}

{"sheet":"Rozpoczęcie","index":0,"n_rows":7,"n_cols":2,"rows_kept":7}
[null,"Informacje o szablonie"]
[null,"Ten szablon służy do rejestrowania zakupów prezentów i śledzenia ich pod kątem budżetu."]
[null,"Wprowadź w tabeli imiona i nazwiska członków rodziny oraz znajomych, przedmioty upominkowe, kwoty w budżecie i kwoty wydane oraz uwagi, a także wybierz okazję i miesiąc wydarzenia."]
[null,"Wykres zestawienia miesięcznego jest aktualizowany automatycznie."]
[null,"Uwaga: "]
[null,"Dodatkowe instrukcje zostały podane w kolumnie A w arkuszu BUDŻET PREZENTOWY I REJESTR. Ten tekst został celowo ukryty. Aby usunąć tekst, zaznacz kolumnę A, a następnie naciśnij klawisz DELETE. Aby odkryć tekst, zaznacz kolumnę A, a następnie zmień kolor czcionki."]
[null,"Aby uzyskać więcej informacji o tabeli, naciśnij w tabeli klawisz SHIFT, a następnie F10, wybierz pozycję TABELA, a następnie TEKST ALTERNATYWNY."]

{"sheet":"Budżet prezentowy i Rejestr","index":1,"n_rows":10,"n_cols":13,"rows_kept":10,"merged":[[0,1,0,4],[0,5,0,12],[1,1,1,2],[2,1,2,12],[3,1,3,3]]}
["Utwórz osobisty Budżet prezentowy i Rejestr w tym arkuszu. Tytuł arkusza znajduje się w komórce po prawej stronie, a porada w komórce F1. Pomocne instrukcje dotyczące korzystania z tego arkusza znajdują się w komórkach w tej kolumnie.","Budżet prezentowy i Rejestr",{"$nulls":3},"Wprowadź jak najwięcej informacji na początku każdego nowego roku. Wprowadź imiona i nazwiska rodziny oraz znajomych, wybierz z jakiej okazji zostanie zakupiony prezent, wybierz miesiąc wydarzenia i wpisz, jaką kwotę chcesz przeznaczyć. Każda osoba może pojawić się w tabeli wiele razy z powodu innej okazji (urodziny, święta, przyjęcie itp.)."]
["Etykieta Zestawienie miesięczne znajduje się w komórce po prawej stronie, a porada w komórce D2.","Zestawienie miesięczne",null,"Użyj wykresu, aby przyjrzeć się nadchodzącym miesiącom i zaplanować wydatki z wyprzedzeniem. Rejestruj zakupy, aby śledzić je w ramach budżetu."]
["Wykres kolumnowy dla kwot w ramach budżetu z nakładką wykresu liniowego dla kwoty wydanej znajduje się w komórce po prawej stronie.","Wykres kolumnowy dla kwot w ramach budżetu z nakładką wykresu liniowego dla kwoty wydanej znajduje się w tej komórce."]
["Etykieta Budżet prezentowy i Rejestr znajduje się w komórce po prawej stronie.","Budżet prezentowy i Rejestr"]
["Wprowadź szczegóły w tabeli Rejestr budżetu, zaczynając od komórki po prawej stronie.","Osoba","Okazja","Miesiąc","Kwota\nw budżecie","Kwota\nwydano","Prezent","Link do prezentu","W sklepie/\nOnline","Zakupiono?","Zapakowano?","Dostarczono?","Uwagi"]
[null,"Imię i nazwisko 1","Urodziny","Czerwiec",{"v":50,"d":"50 zł"},{"v":30,"d":"30 zł"},"Buty","Sprzedawca","Online","Tak","Nie","Nie","16.06, bilety do kina"]
[null,"Imię i nazwisko 2","Rocznice","Kwiecień",{"v":20,"d":"20 zł"},{"v":20,"d":"20 zł"},"Kot","Sprzedawca","W sklepie","Nie","Nie","Nie","Wspomniał, że lubi psy"]
[null,"Imię i nazwisko 3","Święta","Lipiec",{"v":50,"d":"50 zł"},{"v":70,"d":"70 zł"},"Słuchawki","Sprzedawca","Online","Nie","Nie","Nie","Rzeczy do pokoju"]
[null,"Nazwa 4","Urodziny","Styczeń",{"v":20,"d":"20 zł"},{"v":30,"d":"30 zł"},"Gra","Sprzedawca","W sklepie","Tak","Tak","Tak"]
[null,"Imię i nazwisko 5","Śluby","Czerwiec",{"v":100,"d":"100 zł"},{"v":150,"d":"150 zł"},"Kryształowy wazon","Sprzedawca","W sklepie","Tak","Tak","Nie"]

{"sheet":"Dane","index":2,"n_rows":13,"n_cols":8,"rows_kept":13,"hidden":true}
["Okazje",null,"Data","Data","Kwota zaplanowana w budżecie\nUrodziny","Kwota zaplanowana w budżecie\nŚwięta","Kwota zaplanowana w budżecie\nInne","Kwota wydana"]
["Urodziny",null,"Styczeń","Sty",{"$f":"SUMIFS(PlanowanieRejestr[Kwota\nw budżecie],PlanowanieRejestr[Miesiąc],\"Styczeń\",PlanowanieRejestr[Okazja],\"Urodziny\")","v":{"v":20,"d":"20 zł"}},{"$f":"SUMIFS(PlanowanieRejestr[Kwota\nw budżecie],PlanowanieRejestr[Miesiąc],\"Styczeń\",PlanowanieRejestr[Okazja],\"Święta\")","v":{"v":0,"d":"0 zł"}},{"$f":"SUMIFS(PlanowanieRejestr[Kwota\nw budżecie],PlanowanieRejestr[Miesiąc],\"Styczeń\",PlanowanieRejestr[Okazja],\"<>Święta\",PlanowanieRejestr[Okazja],\"<>Urodziny\")","v":{"v":0,"d":"0 zł"}},{"$f":"SUMIFS(PlanowanieRejestr[Kwota\nwydano],PlanowanieRejestr[Miesiąc],\"Styczeń\")","v":{"v":30,"d":"30 zł"}}]
["Święta",null,"Luty","Lut",{"$f":"SUMIFS(PlanowanieRejestr[Kwota\nw budżecie],PlanowanieRejestr[Miesiąc],\"Luty\",PlanowanieRejestr[Okazja],\"Urodziny\")","v":{"v":0,"d":"0 zł"}},{"$f":"SUMIFS(PlanowanieRejestr[Kwota\nw budżecie],PlanowanieRejestr[Miesiąc],\"Luty\",PlanowanieRejestr[Okazja],\"Święta\")","v":{"v":0,"d":"0 zł"}},{"$f":"SUMIFS(PlanowanieRejestr[Kwota\nw budżecie],PlanowanieRejestr[Miesiąc],\"Luty\",PlanowanieRejestr[Okazja],\"<>Święta\",PlanowanieRejestr[Okazja],\"<>Urodziny\")","v":{"v":0,"d":"0 zł"}},{"$f":"SUMIFS(PlanowanieRejestr[Kwota\nwydano],PlanowanieRejestr[Miesiąc],\"Luty\")","v":{"v":0,"d":"0 zł"}}]
["Rocznice",null,"Marzec","Mar",{"$f":"SUMIFS(PlanowanieRejestr[Kwota\nw budżecie],PlanowanieRejestr[Miesiąc],\"Marzec\",PlanowanieRejestr[Okazja],\"Urodziny\")","v":{"v":0,"d":"0 zł"}},{"$f":"SUMIFS(PlanowanieRejestr[Kwota\nw budżecie],PlanowanieRejestr[Miesiąc],\"Marzec\",PlanowanieRejestr[Okazja],\"Święta\")","v":{"v":0,"d":"0 zł"}},{"$f":"SUMIFS(PlanowanieRejestr[Kwota\nw budżecie],PlanowanieRejestr[Miesiąc],\"Marzec\",PlanowanieRejestr[Okazja],\"<>Święta\",PlanowanieRejestr[Okazja],\"<>Urodziny\")","v":{"v":0,"d":"0 zł"}},{"$f":"SUMIFS(PlanowanieRejestr[Kwota\nwydano],PlanowanieRejestr[Miesiąc],\"Marzec\")","v":{"v":0,"d":"0 zł"}}]
["Śluby",null,"Kwiecień","Kwi",{"$f":"SUMIFS(PlanowanieRejestr[Kwota\nw budżecie],PlanowanieRejestr[Miesiąc],\"Kwiecień\",PlanowanieRejestr[Okazja],\"Urodziny\")","v":{"v":0,"d":"0 zł"}},{"$f":"SUMIFS(PlanowanieRejestr[Kwota\nw budżecie],PlanowanieRejestr[Miesiąc],\"Kwiecień\",PlanowanieRejestr[Okazja],\"Święta\")","v":{"v":0,"d":"0 zł"}},{"$f":"SUMIFS(PlanowanieRejestr[Kwota\nw budżecie],PlanowanieRejestr[Miesiąc],\"Kwiecień\",PlanowanieRejestr[Okazja],\"<>Święta\",PlanowanieRejestr[Okazja],\"<>Urodziny\")","v":{"v":20,"d":"20 zł"}},{"$f":"SUMIFS(PlanowanieRejestr[Kwota\nwydano],PlanowanieRejestr[Miesiąc],\"Kwiecień\")","v":{"v":20,"d":"20 zł"}}]
["Wieczory panieńskie",null,"Maj","Maj",{"$f":"SUMIFS(PlanowanieRejestr[Kwota\nw budżecie],PlanowanieRejestr[Miesiąc],\"Maj\",PlanowanieRejestr[Okazja],\"Urodziny\")","v":{"v":0,"d":"0 zł"}},{"$f":"SUMIFS(PlanowanieRejestr[Kwota\nw budżecie],PlanowanieRejestr[Miesiąc],\"Maj\",PlanowanieRejestr[Okazja],\"Święta\")","v":{"v":0,"d":"0 zł"}},{"$f":"SUMIFS(PlanowanieRejestr[Kwota\nw budżecie],PlanowanieRejestr[Miesiąc],\"Maj\",PlanowanieRejestr[Okazja],\"<>Święta\",PlanowanieRejestr[Okazja],\"<>Urodziny\")","v":{"v":0,"d":"0 zł"}},{"$f":"SUMIFS(PlanowanieRejestr[Kwota\nwydano],PlanowanieRejestr[Miesiąc],\"Maj\")","v":{"v":0,"d":"0 zł"}}]
["Przyjęcia z okazji narodzin dziecka",null,"Czerwiec","Cze",{"$f":"SUMIFS(PlanowanieRejestr[Kwota\nw budżecie],PlanowanieRejestr[Miesiąc],\"Czerwiec\",PlanowanieRejestr[Okazja],\"Urodziny\")","v":{"v":50,"d":"50 zł"}},{"$f":"SUMIFS(PlanowanieRejestr[Kwota\nw budżecie],PlanowanieRejestr[Miesiąc],\"Czerwiec\",PlanowanieRejestr[Okazja],\"Święta\")","v":{"v":0,"d":"0 zł"}},{"$f":"SUMIFS(PlanowanieRejestr[Kwota\nw budżecie],PlanowanieRejestr[Miesiąc],\"Czerwiec\",PlanowanieRejestr[Okazja],\"<>Święta\",PlanowanieRejestr[Okazja],\"<>Urodziny\")","v":{"v":100,"d":"100 zł"}},{"$f":"SUMIFS(PlanowanieRejestr[Kwota\nwydano],PlanowanieRejestr[Miesiąc],\"Czerwiec\")","v":{"v":180,"d":"180 zł"}}]
["Ukończenie szkoły",null,"Lipiec","Lip",{"$f":"SUMIFS(PlanowanieRejestr[Kwota\nw budżecie],PlanowanieRejestr[Miesiąc],\"Lipiec\",PlanowanieRejestr[Okazja],\"Urodziny\")","v":{"v":0,"d":"0 zł"}},{"$f":"SUMIFS(PlanowanieRejestr[Kwota\nw budżecie],PlanowanieRejestr[Miesiąc],\"Lipiec\",PlanowanieRejestr[Okazja],\"Święta\")","v":{"v":50,"d":"50 zł"}},{"$f":"SUMIFS(PlanowanieRejestr[Kwota\nw budżecie],PlanowanieRejestr[Miesiąc],\"Lipiec\",PlanowanieRejestr[Okazja],\"<>Święta\",PlanowanieRejestr[Okazja],\"<>Urodziny\")","v":{"v":0,"d":"0 zł"}},{"$f":"SUMIFS(PlanowanieRejestr[Kwota\nwydano],PlanowanieRejestr[Miesiąc],\"Lipiec\")","v":{"v":70,"d":"70 zł"}}]
["Inne",null,"Sierpień","Sie",{"$f":"SUMIFS(PlanowanieRejestr[Kwota\nw budżecie],PlanowanieRejestr[Miesiąc],\"Sierpień\",PlanowanieRejestr[Okazja],\"Urodziny\")","v":{"v":0,"d":"0 zł"}},{"$f":"SUMIFS(PlanowanieRejestr[Kwota\nw budżecie],PlanowanieRejestr[Miesiąc],\"Sierpień\",PlanowanieRejestr[Okazja],\"Święta\")","v":{"v":0,"d":"0 zł"}},{"$f":"SUMIFS(PlanowanieRejestr[Kwota\nw budżecie],PlanowanieRejestr[Miesiąc],\"Sierpień\",PlanowanieRejestr[Okazja],\"<>Święta\",PlanowanieRejestr[Okazja],\"<>Urodziny\")","v":{"v":0,"d":"0 zł"}},{"$f":"SUMIFS(PlanowanieRejestr[Kwota\nwydano],PlanowanieRejestr[Miesiąc],\"Sierpień\")","v":{"v":0,"d":"0 zł"}}]
[null,null,"Wrzesień","Wrz",{"$f":"SUMIFS(PlanowanieRejestr[Kwota\nw budżecie],PlanowanieRejestr[Miesiąc],\"Wrzesień\",PlanowanieRejestr[Okazja],\"Urodziny\")","v":{"v":0,"d":"0 zł"}},{"$f":"SUMIFS(PlanowanieRejestr[Kwota\nw budżecie],PlanowanieRejestr[Miesiąc],\"Wrzesień\",PlanowanieRejestr[Okazja],\"Święta\")","v":{"v":0,"d":"0 zł"}},{"$f":"SUMIFS(PlanowanieRejestr[Kwota\nw budżecie],PlanowanieRejestr[Miesiąc],\"Wrzesień\",PlanowanieRejestr[Okazja],\"<>Święta\",PlanowanieRejestr[Okazja],\"<>Urodziny\")","v":{"v":0,"d":"0 zł"}},{"$f":"SUMIFS(PlanowanieRejestr[Kwota\nwydano],PlanowanieRejestr[Miesiąc],\"Wrzesień\")","v":{"v":0,"d":"0 zł"}}]
[null,null,"Październik","Paź",{"$f":"SUMIFS(PlanowanieRejestr[Kwota\nw budżecie],PlanowanieRejestr[Miesiąc],\"Październik\",PlanowanieRejestr[Okazja],\"Urodziny\")","v":{"v":0,"d":"0 zł"}},{"$f":"SUMIFS(PlanowanieRejestr[Kwota\nw budżecie],PlanowanieRejestr[Miesiąc],\"Październik\",PlanowanieRejestr[Okazja],\"Święta\")","v":{"v":0,"d":"0 zł"}},{"$f":"SUMIFS(PlanowanieRejestr[Kwota\nw budżecie],PlanowanieRejestr[Miesiąc],\"Październik\",PlanowanieRejestr[Okazja],\"<>Święta\",PlanowanieRejestr[Okazja],\"<>Urodziny\")","v":{"v":0,"d":"0 zł"}},{"$f":"SUMIFS(PlanowanieRejestr[Kwota\nwydano],PlanowanieRejestr[Miesiąc],\"Październik\")","v":{"v":0,"d":"0 zł"}}]
[null,null,"Listopad","Lis",{"$f":"SUMIFS(PlanowanieRejestr[Kwota\nw budżecie],PlanowanieRejestr[Miesiąc],\"Listopad\",PlanowanieRejestr[Okazja],\"Urodziny\")","v":{"v":0,"d":"0 zł"}},{"$f":"SUMIFS(PlanowanieRejestr[Kwota\nw budżecie],PlanowanieRejestr[Miesiąc],\"Listopad\",PlanowanieRejestr[Okazja],\"Święta\")","v":{"v":0,"d":"0 zł"}},{"$f":"SUMIFS(PlanowanieRejestr[Kwota\nw budżecie],PlanowanieRejestr[Miesiąc],\"Listopad\",PlanowanieRejestr[Okazja],\"<>Święta\",PlanowanieRejestr[Okazja],\"<>Urodziny\")","v":{"v":0,"d":"0 zł"}},{"$f":"SUMIFS(PlanowanieRejestr[Kwota\nwydano],PlanowanieRejestr[Miesiąc],\"Listopad\")","v":{"v":0,"d":"0 zł"}}]
[null,null,"Grudzień","Gru",{"$f":"SUMIFS(PlanowanieRejestr[Kwota\nw budżecie],PlanowanieRejestr[Miesiąc],\"Grudzień\",PlanowanieRejestr[Okazja],\"Urodziny\")","v":{"v":0,"d":"0 zł"}},{"$f":"SUMIFS(PlanowanieRejestr[Kwota\nw budżecie],PlanowanieRejestr[Miesiąc],\"Grudzień\",PlanowanieRejestr[Okazja],\"Święta\")","v":{"v":0,"d":"0 zł"}},{"$f":"SUMIFS(PlanowanieRejestr[Kwota\nw budżecie],PlanowanieRejestr[Miesiąc],\"Grudzień\",PlanowanieRejestr[Okazja],\"<>Święta\",PlanowanieRejestr[Okazja],\"<>Urodziny\")","v":{"v":0,"d":"0 zł"}},{"$f":"SUMIFS(PlanowanieRejestr[Kwota\nwydano],PlanowanieRejestr[Miesiąc],\"Grudzień\")","v":{"v":0,"d":"0 zł"}}]